bitfinex/quotes_BTCUSD_20241011
["timestamp","ask_amount","ask_price","bid_price","bid_amount"]
[1728622814645,0.001634,60707.0,60706.0,0.53332285]
[1728622814854,0.001634,60707.0,60706.0,0.6320814]
[1728622815493,0.001634,60707.0,60706.0,0.68333836]
[1728622815899,0.001634,60707.0,60706.0,0.6320814]
[1728622817653,0.001634,60707.0,60706.0,0.64422524]
[1728622821129,0.001634,60707.0,60706.0,0.4345643]
[1728622821347,0.001634,60707.0,60706.0,0.265255]
[1728622821579,0.076634,60707.0,60706.0,0.265255]
[1728622822036,0.076634,60707.0,60706.0,0.248255]
[1728622822269,0.076634,60707.0,60706.0,0.255255]
[1728622822507,0.076634,60707.0,60706.0,0.248255]
[1728622822753,0.076634,60707.0,60706.0,0.257255]
[1728622822994,0.076634,60707.0,60706.0,0.264255]
[1728622823699,0.076634,60707.0,60706.0,0.36301355]
[1728622823946,0.076634,60707.0,60706.0,0.35401355]
[1728622824367,0.076634,60707.0,60706.0,0.36301355]
[1728622824574,0.076634,60707.0,60706.0,0.35601355]
[1728622825064,0.076634,60707.0,60706.0,0.36401355]
[1728622825268,0.001634,60707.0,60706.0,0.36401355]
[1728622826335,0.001634,60707.0,60706.0,0.43775527]
[1728622827225,0.001634,60707.0,60706.0,0.42875527]
[1728622827448,0.001634,60707.0,60706.0,0.34701355]
[1728622827665,0.001634,60707.0,60706.0,0.35601355]
[1728622827887,0.001634,60707.0,60706.0,0.4297507]
[1728622828098,0.001634,60707.0,60706.0,0.42875529]
[1728622828299,0.001634,60707.0,60706.0,0.43775529]
[1728622828513,0.001634,60707.0,60706.0,0.36401355]
[1728622828718,0.001634,60707.0,60706.0,0.41318037]
[1728622829162,0.001634,60707.0,60706.0,0.36401355]
[1728622829375,0.001634,60707.0,60706.0,0.60706459]
[1728622832209,0.001634,60707.0,60706.0,0.53332285]
[1728622833250,0.001634,60707.0,60706.0,0.6320814]
[1728622833681,0.001634,60707.0,60706.0,0.8064814]
[1728622834537,0.001634,60707.0,60706.0,0.7974814]
[1728622834743,0.001634,60707.0,60706.0,0.8064814]
[1728622834948,0.001634,60707.0,60706.0,0.7984814]
[1728622835157,0.001634,60707.0,60706.0,0.8054814]
[1728622839002,0.001634,60707.0,60706.0,0.85675336]
[1728622840786,0.001634,60707.0,60706.0,0.85715487]
[1728622841245,0.001634,60707.0,60706.0,0.85915487]
[1728622842800,0.001634,60707.0,60706.0,0.85715487]
[1728622843030,0.001634,60707.0,60706.0,0.85915487]
[1728622843256,0.001634,60711.0,60710.0,0.25064651]
[1728622843496,0.001634,60711.0,60710.0,0.56798632]
[1728622844469,0.001634,60711.0,60710.0,0.57598632]
[1728622846096,0.001634,60711.0,60710.0,0.72357258]
[1728622846759,0.001634,60711.0,60710.0,0.73057258]
[1728622846975,0.001634,60711.0,60710.0,0.58298632]
[1728622847186,0.001634,60711.0,60710.0,0.73056067]
[1728622847395,0.001634,60711.0,60710.0,0.72256067]
[1728622847601,0.001634,60711.0,60710.0,0.71556067]
[1728622847821,0.001634,60711.0,60710.0,0.72356067]
[1728622848043,0.001634,60711.0,60710.0,0.73056067]
[1728622848916,0.001634,60711.0,60710.0,0.72256067]
[1728622849342,0.001634,60711.0,60710.0,0.73056067]
[1728622849791,0.001634,60711.0,60710.0,0.85854487]
[1728622850002,0.001634,60711.0,60710.0,0.75978632]
[1728622850419,0.0002,60719.0,60710.0,0.75178632]
[1728622850644,0.0002,60719.0,60718.0,0.44534612]
[1728622850878,0.0002,60719.0,60718.0,0.61465542]
[1728622851300,0.0002,60719.0,60718.0,0.71271397]
[1728622851542,0.0002,60719.0,60718.0,0.73800437]
[1728622852671,0.001834,60719.0,60718.0,0.73800437]
[1728622853143,0.001834,60719.0,60718.0,1.0986385]
[1728622853363,4.5e-07,60722.0,60721.0,0.250218]
[1728622853587,4.5e-07,60722.0,60721.0,0.67157584]
[1728622853824,4.5e-07,60722.0,60721.0,0.74512439]
[1728622854060,4.5e-07,60722.0,60721.0,0.84388294]
[1728622854273,1e-08,60730.0,60729.0,0.002]
[1728622854525,1e-08,60730.0,60729.0,0.7686723]
[1728622855182,1e-08,60735.0,60732.0,0.1]
[1728622855407,1e-08,60735.0,60734.0,0.59045903]
[1728622855846,1e-08,60735.0,60734.0,0.64156875]
[1728622856292,1e-08,60735.0,60734.0,0.59045903]
[1728622857136,1e-08,60735.0,60734.0,0.59786054]
[1728622857375,1e-08,60735.0,60734.0,0.59286054]
[1728622857812,1e-08,60735.0,60734.0,0.59786054]
[1728622858250,1e-08,60735.0,60734.0,0.656937]
[1728622858497,1e-08,60735.0,60734.0,0.649937]
[1728622858741,1e-08,60735.0,60734.0,0.641937]
[1728622859159,1e-08,60735.0,60734.0,0.626937]
[1728622859821,1e-08,60735.0,60734.0,0.625937]
[1728622860058,1e-08,60735.0,60734.0,0.62653549]
[1728622860275,1e-08,60735.0,60734.0,0.87468456]
[1728622860498,1e-08,60735.0,60734.0,0.633937]
[1728622861367,1e-08,60735.0,60734.0,0.625937]
[1728622861691,1e-08,60735.0,60734.0,0.633937]
[1728622866203,1e-08,60735.0,60734.0,0.58286054]
[1728622867062,1e-08,60735.0,60734.0,0.58486054]
[1728622868778,1e-08,60735.0,60734.0,0.68275353]
[1728622869270,1e-08,60735.0,60734.0,0.58286054]
[1728622869489,1e-08,60735.0,60734.0,0.58486054]
[1728622869921,1e-08,60739.0,60738.0,0.14857851]
[1728622870153,1e-08,60739.0,60738.0,0.57314267]
[1728622870355,7.1e-07,60740.0,60739.0,0.45477551]
[1728622870612,7.1e-07,60740.0,60739.0,0.69744647]
[1728622871750,7.1e-07,60740.0,60739.0,0.70444647]
[1728622872182,7.1e-07,60740.0,60739.0,0.63908481]
[1728622872651,7.1e-07,60740.0,60739.0,0.65109423]
[1728622873397,7.1e-07,60740.0,60739.0,0.69996275]
[1728622873625,7.1e-07,60740.0,60739.0,0.69996357]
[1728622874345,0.003994,60743.0,60739.0,0.69996357]
[1728622874346,7.1e-07,60743.0,60742.0,0.40053124]
[1728622874550,7.1e-07,60743.0,60742.0,0.56984054]
[1728622876047,7.1e-07,60743.0,60742.0,0.57784054]
[1728622876918,7.1e-07,60743.0,60742.0,0.74880327]
[1728622876921,0.00295239,60750.0,60742.0,0.74880327]
[1728622876922,0.00295239,60750.0,60749.0,0.24815]
[1728622877133,0.00295239,60750.0,60749.0,0.56742203]
[1728622877348,0.00295239,60750.0,60749.0,0.56942203]
[1728622877563,0.00295239,60750.0,60749.0,0.71938476]
[1728622878271,0.00295239,60750.0,60749.0,0.72738476]
[1728622878496,0.00295239,60750.0,60749.0,0.73438476]
[1728622878705,0.00295239,60750.0,60749.0,0.58442203]
[1728622879619,0.00295239,60750.0,60749.0,0.58242203]
[1728622880786,0.00295239,60750.0,60749.0,0.58282354]
[1728622881037,0.00295239,60750.0,60749.0,0.58482354]
[1728622881804,0.00295239,60750.0,60749.0,0.73478627]
[1728622882558,3.9e-07,60750.0,60749.0,0.63156901]
[1728622882795,3.9e-07,60750.0,60749.0,0.64343997]
[1728622883045,0.00288857,60752.0,60749.0,0.64343997]
[1728622883046,9.6e-07,60752.0,60751.0,0.15054651]
[1728622883301,9.6e-07,60752.0,60751.0,0.80758083]
[1728622883537,9.6e-07,60752.0,60751.0,0.80428949]
[1728622884015,0.16660096,60767.0,60755.0,0.00040151]
[1728622884254,0.16660096,60767.0,60766.0,0.38332584]
[1728622884495,0.16660096,60767.0,60766.0,0.6234673]
[1728622884995,0.001634,60768.0,60767.0,0.248106]
[1728622885248,0.001634,60768.0,60767.0,0.4174153]
[1728622885520,0.079334,60768.0,60767.0,0.248106]
[1728622886972,0.079334,60768.0,60767.0,0.255106]
[1728622887218,0.176134,60768.0,60767.0,0.255106]
[1728622887716,0.176134,60768.0,60767.0,0.263106]
[1728622892965,0.001634,60768.0,60767.0,0.6384643]
[1728622894979,0.001634,60768.0,60767.0,0.6304643]
[1728622895192,0.001634,60768.0,60767.0,0.6234643]
[1728622895405,0.001634,60768.0,60767.0,0.63507773]
[1728622895700,0.001634,60768.0,60767.0,0.64207773]
[1728622896349,0.001634,60768.0,60767.0,0.65007773]
[1728622898177,0.001634,60768.0,60767.0,0.6384643]
[1728622904458,0.001634,60768.0,60767.0,0.56762956]
[1728622904878,0.001634,60768.0,60767.0,0.4324153]
[1728622905991,0.001634,60768.0,60767.0,0.56762956]
[1728622909955,0.001634,60768.0,60767.0,0.55962956]
[1728622910178,0.001634,60768.0,60767.0,0.56062956]
[1728622910640,0.001634,60768.0,60767.0,0.56762956]
[1728622912812,0.001634,60768.0,60767.0,0.55962956]
[1728622913066,0.001634,60768.0,60767.0,0.56062956]
[1728622913309,0.001634,60768.0,60767.0,0.56762956]
[1728622913579,0.001634,60768.0,60767.0,0.55262956]
[1728622913801,0.001634,60768.0,60767.0,0.56062956]
[1728622914039,0.001634,60768.0,60767.0,0.56762956]
[1728622916215,0.001634,60768.0,60767.0,0.61668992]
[1728622917427,0.001634,60768.0,60767.0,0.56762956]
[1728622918132,0.001634,60768.0,60767.0,0.64122011]
[1728622918612,0.001634,60768.0,60767.0,0.6412599]
[1728622920249,0.001634,60768.0,60767.0,0.56762956]
[1728622921180,0.001634,60768.0,60767.0,0.66580335]
[1728622921664,0.001634,60768.0,60767.0,0.64121369]
[1728622922089,0.001634,60768.0,60767.0,0.5430399]
[1728622923240,0.001634,60768.0,60767.0,0.66575713]
[1728622923893,0.001634,60768.0,60767.0,0.66583599]
[1728622924131,0.094134,60768.0,60767.0,0.4324153]
[1728622926088,0.094134,60768.0,60767.0,0.55521139]
[1728622926310,0.094134,60768.0,60767.0,0.5552662]
[1728622927182,0.094134,60768.0,60767.0,0.71712891]
[1728622927416,0.001634,60768.0,60767.0,0.71712891]
[1728622928057,0.001634,60768.0,60767.0,0.59427801]
[1728622930791,0.178734,60768.0,60767.0,0.6065656]
[1728622930997,0.178734,60768.0,60767.0,0.55532749]
[1728622931205,0.178734,60768.0,60767.0,0.4324153]
[1728622936324,0.178734,60768.0,60767.0,0.555359]
[1728622936565,0.001634,60768.0,60767.0,0.555359]
[1728622938140,0.001634,60768.0,60767.0,0.4324153]
[1728622949610,0.001634,60768.0,60767.0,0.4244153]
[1728622949837,0.001634,60768.0,60767.0,0.4174153]
[1728622950061,0.001634,60768.0,60767.0,0.4254153]
[1728622950284,0.001634,60768.0,60767.0,0.4324153]
[1728622950510,0.001634,60768.0,60767.0,0.4244153]
[1728622950720,0.001634,60768.0,60767.0,0.4324153]
[1728622953518,0.001634,60768.0,60767.0,0.55536813]
[1728622953753,0.001634,60768.0,60767.0,0.53078147]
[1728622955342,0.098734,60768.0,60767.0,0.36147217]
[1728622956069,0.174034,60768.0,60767.0,0.23687841]
[1728622956307,0.174034,60768.0,60767.0,0.155106]
[1728622956548,0.174034,60768.0,60767.0,0.156106]
[1728622956783,0.174034,60768.0,60767.0,0.163106]
[1728622957024,0.174034,60768.0,60767.0,0.148106]
[1728622957293,0.17863249,60768.0,60767.0,0.156106]
[1728622957525,0.17863249,60768.0,60767.0,0.163106]
[1728622957762,0.17863249,60768.0,60767.0,0.156106]
[1728622957998,0.17863249,60768.0,60767.0,0.163106]
[1728622959382,0.17863249,60768.0,60767.0,0.156106]
[1728622959383,0.001634,60768.0,60767.0,0.156106]
[1728622959596,0.001634,60768.0,60767.0,0.148106]
[1728622959832,0.100934,60768.0,60767.0,0.157106]
[1728622960268,0.100934,60768.0,60767.0,0.148106]
[1728622960718,0.100934,60768.0,60767.0,0.157106]
[1728622960944,0.100934,60768.0,60767.0,0.164106]
[1728622961853,0.18863249,60768.0,60767.0,0.164106]
[1728622962297,0.18792497,60768.0,60767.0,0.164106]
[1728622968728,0.00092648,60768.0,60767.0,0.41185356]
[1728622968946,0.00092648,60768.0,60767.0,0.164106]
[1728622971826,0.00552497,60768.0,60767.0,0.164106]
[1728622976068,0.00092648,60768.0,60767.0,0.164106]
[1728622978035,0.00092648,60768.0,60767.0,0.27474594]
[1728622978697,0.00092648,60768.0,60767.0,0.37474594]
[1728622979646,0.00092648,60768.0,60767.0,0.37637994]
[1728622979854,0.00092648,60768.0,60767.0,0.54568924]
[1728622980706,0.00092648,60768.0,60767.0,0.4350493]
[1728622982604,0.00092648,60768.0,60767.0,0.48415576]
[1728622983949,0.00092648,60768.0,60767.0,0.4350493]
[1728622987228,0.00092648,60768.0,60767.0,0.26574]
[1728622987921,0.07642648,60768.0,60767.0,0.16574]
[1728622988660,0.17352648,60768.0,60767.0,0.16574]
[1728622993400,0.17812497,60768.0,60767.0,0.16574]
[1728622995128,0.17812497,60768.0,60767.0,0.017634]
[1728622995650,0.62921867,60768.0,60767.0,0.017634]
[1728622995914,0.51853827,60768.0,60767.0,0.017634]
[1728622996620,0.51853827,60768.0,60767.0,0.001634]
[1728622996856,0.51853827,60768.0,60767.0,0.008634]
[1728622998009,0.51853827,60768.0,60767.0,0.017634]
[1728622998516,0.62921867,60768.0,60767.0,0.008634]
[1728622998723,0.62921867,60768.0,60767.0,0.010634]
[1728622998945,0.62921867,60768.0,60767.0,0.018634]
[1728623005070,0.62921867,60768.0,60767.0,0.009634]
[1728623005506,0.62921867,60768.0,60767.0,0.018634]
[1728623005918,0.62921867,60768.0,60767.0,0.001634]
[1728623006347,0.62921867,60768.0,60767.0,0.008634]
[1728623006597,0.62921867,60768.0,60767.0,0.001634]
[1728623006817,0.62921867,60768.0,60767.0,0.016634]
[1728623007685,0.51853827,60768.0,60767.0,0.016634]
[1728623008521,0.51853827,60768.0,60767.0,0.009634]
[1728623008777,0.51853827,60768.0,60767.0,0.016634]
[1728623008995,0.17812497,60768.0,60767.0,0.15774]
[1728623009445,0.00552497,60768.0,60767.0,0.16474]
[1728623010095,0.00092648,60768.0,60767.0,0.16474]
[1728623011204,0.00092648,60768.0,60767.0,0.15674]
[1728623011468,0.00092648,60768.0,60767.0,0.16574]
[1728623011933,0.00092648,60768.0,60767.0,0.14974]
[1728623012151,0.00092648,60768.0,60767.0,0.15674]
[1728623012370,0.00092648,60768.0,60767.0,0.16574]
[1728623012589,0.00092648,60768.0,60767.0,0.15874]
[1728623012847,0.00092648,60768.0,60767.0,0.16574]
[1728623015331,0.00092648,60768.0,60767.0,0.4478204]
[1728623016753,0.00092648,60768.0,60767.0,0.4408204]
[1728623017012,0.00092648,60768.0,60767.0,0.33714]
[1728623017229,0.00092648,60768.0,60767.0,0.32814]
[1728623017448,0.00092648,60768.0,60767.0,0.33714]
[1728623017950,0.00092648,60768.0,60767.0,0.32814]
[1728623018178,0.00092648,60768.0,60767.0,0.33714]
[1728623018411,0.00092648,60768.0,60767.0,0.7171297]
[1728623019626,0.00092648,60768.0,60767.0,0.7101297]
[1728623020096,0.00092648,60768.0,60767.0,0.7171297]
[1728623020330,0.00092648,60768.0,60767.0,0.7081297]
[1728623020602,0.00092648,60768.0,60767.0,0.7171297]
[1728623029107,0.00092648,60768.0,60767.0,0.6064493]
[1728623029350,0.00092648,60768.0,60767.0,0.7171297]
[1728623032637,0.00092648,60768.0,60767.0,0.7081297]
[1728623032777,0.00092648,60768.0,60767.0,0.7171297]
[1728623033851,0.00092648,60768.0,60767.0,0.7081297]
[1728623034226,0.00092648,60768.0,60767.0,0.7101297]
[1728623034653,0.00092648,60768.0,60767.0,0.7171297]
[1728623035708,0.00092648,60768.0,60767.0,0.7081297]
[1728623035917,0.00092648,60768.0,60767.0,0.7101297]
[1728623036123,0.00092648,60768.0,60767.0,0.7171297]
[1728623036541,0.00092648,60768.0,60767.0,0.7081297]
[1728623036751,0.00092648,60768.0,60767.0,0.7171297]
[1728623036975,0.00092648,60768.0,60767.0,0.7101297]
[1728623037180,0.00092648,60768.0,60767.0,0.7171297]
[1728623037388,0.00092648,60768.0,60767.0,0.7081297]
[1728623037622,0.00092648,60768.0,60767.0,0.7082217]
[1728623038869,0.00092648,60768.0,60767.0,0.7102217]
[1728623039077,0.00092648,60768.0,60767.0,0.7172217]
[1728623039283,0.00092648,60768.0,60767.0,0.7082217]
[1728623039491,0.00092648,60768.0,60767.0,0.7012217]
[1728623039700,0.00092648,60768.0,60767.0,0.7082217]
[1728623040134,0.00092648,60768.0,60767.0,0.7172217]
[1728623041856,0.00092648,60768.0,60767.0,0.7082217]
[1728623042060,0.00092648,60768.0,60767.0,0.7012217]
[1728623042269,0.00092648,60768.0,60767.0,0.7172217]
[1728623042485,0.00092648,60768.0,60767.0,0.7102217]
[1728623042694,0.00092648,60768.0,60767.0,0.7012217]
[1728623042914,0.00092648,60768.0,60767.0,0.7172217]
[1728623043434,0.00596,60781.0,60767.0,0.7172217]
[1728623043435,0.023,60785.0,60771.0,0.296192]
[1728623043640,0.148069,60783.0,60778.0,0.148078]
[1728623043856,0.148068,60783.0,60779.0,0.148076]
[1728623044061,0.319117,60787.0,60779.0,0.148076]
[1728623044062,0.444192,60785.0,60779.0,0.148076]
[1728623044505,0.296128,60785.0,60779.0,0.148076]
[1728623044716,0.148066,60784.0,60779.0,0.148076]
[1728623045376,0.296121,60786.0,60779.0,0.007]
[1728623045584,0.023,60785.0,60778.0,0.148079]
[1728623045798,0.023,60785.0,60778.0,0.148078]
[1728623045799,0.148066,60784.0,60778.0,0.148078]
[1728623046011,0.148066,60784.0,60779.0,0.007]
[1728623046260,0.148066,60784.0,60778.0,0.148078]
[1728623046457,0.1662,60783.0,60779.0,0.148076]
[1728623046796,0.1662,60783.0,60779.0,0.009]
[1728623046999,0.1662,60783.0,60778.0,0.148079]
[1728623047209,0.1662,60783.0,60777.0,0.14808]
[1728623047210,0.314269,60783.0,60777.0,0.14808]
[1728623047420,0.1662,60783.0,60781.0,0.148071]
[1728623048061,0.4067934,60788.0,60779.0,0.009]
[1728623048062,0.023,60790.0,60782.0,0.1821]
[1728623048291,0.001634,60791.0,60782.0,0.1821]
[1728623048505,0.149683,60791.0,60782.0,0.478239]
[1728623048725,0.149683,60791.0,60782.0,0.378739]
[1728623048945,0.149683,60791.0,60784.0,0.296127]
[1728623049177,0.149683,60791.0,60786.0,0.14806]
[1728623049386,0.227283,60791.0,60786.0,0.14806]
[1728623049849,0.317583,60791.0,60786.0,0.14806]
[1728623051460,0.4282634,60791.0,60786.0,0.14806]
[1728623051903,0.4282634,60791.0,60786.0,0.15506]
[1728623052114,0.4282634,60791.0,60786.0,0.14806]
[1728623052568,0.4282634,60791.0,60786.0,0.16406]
[1728623053477,0.4282634,60791.0,60786.0,0.15506]
[1728623053693,0.4282634,60791.0,60786.0,0.16406]
[1728623054553,0.4282634,60791.0,60786.0,0.15706]
[1728623055004,0.4282634,60791.0,60786.0,0.15506]
[1728623055232,0.148055,60789.0,60786.0,0.007]
[1728623055454,0.1106804,60788.0,60786.0,0.016]
[1728623056142,0.1106804,60788.0,60775.0,0.24774756]
[1728623056143,0.0956,60786.0,60775.0,0.24774756]
[1728623056358,0.148066,60784.0,60782.0,0.24774756]
[1728623056577,0.1106804,60783.0,60779.0,0.148076]
[1728623056790,0.1106804,60783.0,60780.0,0.148074]
[1728623057459,0.1106804,60783.0,60778.0,0.296159]
[1728623057668,0.1106804,60783.0,60775.0,0.24774756]
[1728623057669,0.1106804,60783.0,60781.0,0.148072]
[1728623058679,0.1106804,60783.0,60780.0,0.007]
[1728623058879,0.1106804,60783.0,60781.0,0.009]
[1728623059289,0.1106804,60783.0,60781.0,0.157071]
[1728623059500,0.2587484,60783.0,60781.0,0.016]
[1728623059770,0.1106804,60783.0,60781.0,0.007]
[1728623060034,0.1106804,60783.0,60780.0,0.157074]
[1728623060304,0.223463,60785.0,60780.0,0.157074]
[1728623060305,0.223463,60785.0,60781.0,0.148071]
[1728623060527,0.3341434,60785.0,60781.0,0.148071]
[1728623061171,0.148072,60781.0,60780.0,0.016]
[1728623061394,0.1106804,60782.0,60780.0,0.009]
[1728623061623,0.1106804,60782.0,60778.0,0.148078]
[1728623061880,0.1106804,60782.0,60781.0,0.016]
[1728623062095,0.1106804,60782.0,60781.0,0.009]
[1728623062314,0.1106804,60782.0,60780.0,0.007]
[1728623062589,0.148072,60781.0,60780.0,0.007]
[1728623062799,0.148078,60779.0,60777.0,0.24774756]
[1728623063009,0.416848,60781.0,60777.0,0.24774756]
[1728623063010,0.023,60780.0,60778.0,0.007]
[1728623063225,0.148077,60779.0,60778.0,0.007]
[1728623063639,0.023,60780.0,60778.0,0.007]
[1728623063873,0.1106804,60779.0,60778.0,0.007]
[1728623064303,0.1106804,60779.0,60776.0,0.148083]
[1728623064511,0.00775497,60778.0,60776.0,0.148083]
[1728623065611,0.00775497,60778.0,60776.0,0.009]
[1728623065821,0.00775497,60778.0,60776.0,0.016]
[1728623066028,0.00775497,60778.0,60776.0,0.007]
[1728623066237,0.00775497,60778.0,60776.0,0.157083]
[1728623066909,0.00775497,60778.0,60777.0,0.148082]
[1728623067371,0.00775497,60778.0,60776.0,0.009]
[1728623067614,0.00775497,60778.0,60776.0,0.157083]
[1728623067855,0.00775497,60778.0,60777.0,0.148082]
[1728623069141,0.00775497,60778.0,60777.0,0.157082]
[1728623069360,0.00775497,60778.0,60777.0,0.164082]
[1728623070458,0.023,60781.0,60778.0,0.148078]
[1728623071343,0.023,60781.0,60779.0,0.148077]
[1728623072689,0.023,60781.0,60779.0,0.157077]
[1728623072917,0.171075,60780.0,60779.0,0.016]
[1728623073132,0.023,60780.0,60779.0,0.016]
[1728623073351,0.171075,60780.0,60779.0,0.016]
[1728623074021,0.171075,60780.0,60779.0,0.007]
[1728623074239,0.171075,60780.0,60779.0,0.016]
[1728623074446,0.171075,60780.0,60779.0,0.009]
[1728623074873,0.171075,60780.0,60779.0,0.016]
[1728623076466,0.6312647,60780.0,60779.0,0.016]
[1728623076687,0.70525826,60780.0,60779.0,0.016]
[1728623077593,0.6312647,60780.0,60779.0,0.007]
[1728623078030,0.6312647,60780.0,60776.0,0.001634]
[1728623078031,0.153082,60777.0,60776.0,0.001634]
[1728623078278,0.4560717,60777.0,60776.0,0.001634]
[1728623079384,0.46374972,60777.0,60776.0,0.008634]
[1728623080224,0.46374972,60777.0,60776.0,0.017634]
[1728623080683,0.55974972,60777.0,60776.0,0.017634]
[1728623081369,0.56174972,60777.0,60776.0,0.017634]
[1728623081573,0.55974972,60777.0,60776.0,0.017634]
[1728623082922,0.78471403,60777.0,60776.0,0.017634]
[1728623084240,0.78271403,60777.0,60776.0,0.017634]
[1728623094142,1.16879443,60777.0,60776.0,0.017634]
[1728623094371,1.05611403,60777.0,60776.0,0.017634]
[1728623094618,1.05811403,60777.0,60776.0,0.017634]
[1728623096504,0.91134972,60777.0,60776.0,0.017634]
[1728623097413,0.95860437,60777.0,60776.0,0.017634]
[1728623097652,0.59832397,60777.0,60776.0,0.017634]
[1728623097864,0.70900437,60777.0,60776.0,0.017634]
[1728623098082,0.70900509,60777.0,60776.0,0.017634]
[1728623098313,0.65974972,60777.0,60776.0,0.017634]
[1728623100540,0.70900509,60777.0,60776.0,0.017634]
[1728623101419,0.70901861,60777.0,60776.0,0.017634]
[1728623101628,0.70902547,60777.0,60776.0,0.017634]
[1728623101846,0.87846817,60777.0,60776.0,0.017634]
[1728623102071,1.26567616,60777.0,60776.0,0.017634]
[1728623102297,1.19177282,60777.0,60776.0,0.017634]
[1728623102570,1.17963021,60777.0,60776.0,0.017634]
[1728623102773,0.79701202,60777.0,60776.0,0.017634]
[1728623102992,0.90769242,60777.0,60776.0,0.008634]
[1728623103212,0.73824972,60777.0,60776.0,0.008634]
[1728623103456,0.73824972,60777.0,60776.0,0.016634]
[1728623103672,0.83678751,60777.0,60776.0,0.016634]
[1728623104118,0.83678751,60777.0,60776.0,0.009634]
[1728623104321,0.94848636,60777.0,60776.0,0.010634]
[1728623104539,1.11692906,60777.0,60776.0,0.009634]
[1728623104968,1.11692906,60777.0,60776.0,0.017634]
[1728623105180,1.00624866,60777.0,60776.0,0.017634]
[1728623106033,0.89556826,60777.0,60776.0,0.017634]
[1728623106247,1.00624866,60777.0,60776.0,0.017634]
[1728623108367,0.90769242,60777.0,60776.0,0.017634]
[1728623108577,0.83374866,60777.0,60776.0,0.017634]
[1728623108793,0.45306932,60777.0,60776.0,0.017634]
[1728623109006,0.46374972,60777.0,60776.0,0.017634]
[1728623109428,0.29266772,60777.0,60776.0,0.017634]
[1728623109653,0.17698732,60777.0,60776.0,0.017634]
[1728623109862,0.17698732,60777.0,60776.0,0.165718]
[1728623110364,0.00767802,60777.0,60776.0,0.165718]
[1728623110808,0.00767802,60777.0,60776.0,0.157718]
[1728623111058,0.005,60782.0,60777.0,0.148081]
[1728623111269,0.1693093,60781.0,60777.0,0.148081]
[1728623111725,0.023,60780.0,60777.0,0.148081]
[1728623111964,0.1693093,60779.0,60777.0,0.148081]
[1728623112201,0.023,60778.0,60777.0,0.148081]
[1728623112416,0.1923093,60778.0,60777.0,0.148081]
[1728623113059,0.1923093,60778.0,60777.0,0.157081]
[1728623113291,0.023,60782.0,60778.0,0.148078]
[1728623113542,0.023,60780.0,60779.0,0.148077]
[1728623113755,0.1923093,60780.0,60779.0,0.148077]
[1728623113985,0.1923093,60780.0,60778.0,0.148079]
[1728623114206,0.1923093,60779.0,60778.0,0.148079]
[1728623114416,0.1693093,60779.0,60777.0,0.231181]
[1728623114651,0.01908,60778.0,60777.0,0.224181]
[1728623114865,0.01908,60778.0,60777.0,0.233181]
[1728623115295,0.01908,60778.0,60777.0,0.224181]
[1728623115744,0.01908,60778.0,60777.0,0.0851]
[1728623116249,0.01908,60778.0,60776.0,0.151797]
[1728623116250,0.148082,60777.0,60776.0,0.003714]
[1728623116504,0.4280717,60777.0,60776.0,0.003714]
[1728623116718,0.50736336,60777.0,60776.0,0.003714]
[1728623116989,0.5320092,60777.0,60776.0,0.003714]
[1728623117241,0.68361975,60777.0,60776.0,0.003714]
[1728623117669,0.68361975,60777.0,60776.0,0.010714]
[1728623117901,0.68561975,60777.0,60776.0,0.003714]
[1728623118587,0.74364853,60777.0,60776.0,0.003714]
[1728623118812,0.74364853,60777.0,60776.0,0.012714]
[1728623119030,0.84531103,60777.0,60776.0,0.012714]
[1728623119247,0.84531103,60777.0,60776.0,0.010714]
[1728623119475,0.96854596,60777.0,60776.0,0.019714]
[1728623119945,0.84531103,60777.0,60776.0,0.010714]
[1728623120373,0.84531103,60777.0,60776.0,0.019714]
[1728623120795,0.84531103,60777.0,60776.0,0.012714]
[1728623121029,1.01402021,60777.0,60776.0,0.019714]
[1728623121301,0.007,60774.0,60773.0,0.0001]
[1728623121538,0.95821666,60774.0,60773.0,0.0001]
[1728623121800,0.97362714,60774.0,60773.0,0.0001]
[1728623122029,0.97362714,60774.0,60764.0,0.24774756]
[1728623122030,0.007,60768.0,60764.0,0.24774756]
[1728623122269,0.70024214,60768.0,60764.0,0.24774756]
[1728623122528,0.99301211,60768.0,60764.0,0.24774756]
[1728623122764,0.99301211,60768.0,60756.0,0.24774756]
[1728623122992,1.09301211,60768.0,60756.0,0.24774756]
[1728623123219,1.09301211,60768.0,60767.0,0.009726]
[1728623123447,1.09301211,60768.0,60767.0,0.010726]
[1728623123668,0.9696824,60768.0,60767.0,0.010726]
[1728623123923,0.9696824,60768.0,60767.0,0.018726]
[1728623124186,0.9696824,60768.0,60767.0,0.010726]
[1728623124401,0.9696824,60768.0,60767.0,0.011726]
[1728623124402,0.95527436,60768.0,60767.0,0.011726]
[1728623124648,0.96319508,60768.0,60767.0,0.002726]
[1728623125094,0.97719508,60768.0,60767.0,0.003726]
[1728623125316,1.07577533,60768.0,60767.0,0.003726]
[1728623126785,1.15427533,60768.0,60767.0,0.003726]
[1728623128437,1.05569508,60768.0,60767.0,0.003726]
[1728623129397,0.8084859,60768.0,60767.0,0.003726]
[1728623129627,0.85774803,60768.0,60767.0,0.003726]
[1728623129861,0.8084859,60768.0,60767.0,0.003726]
[1728623130802,0.97619508,60768.0,60767.0,0.002726]
[1728623131031,0.7934859,60768.0,60767.0,0.001726]
[1728623131502,0.005,60760.0,60756.0,0.00010556]
[1728623131747,0.1923093,60759.0,60756.0,0.00010556]
[1728623132219,0.1923093,60759.0,60755.0,0.148135]
[1728623132220,0.023,60757.0,60755.0,0.148135]
[1728623132444,0.1693093,60756.0,60755.0,0.148135]
[1728623132667,0.20012292,60756.0,60755.0,0.148135]
[1728623133167,0.023,60755.0,60754.0,0.148138]
[1728623133388,0.1923093,60755.0,60754.0,0.148138]
[1728623133604,0.20012302,60755.0,60754.0,0.148138]
[1728623134494,0.20012302,60755.0,60751.0,0.227043]
[1728623134707,0.20012302,60755.0,60752.0,0.148142]
[1728623135344,0.20012302,60755.0,60754.0,0.008]
[1728623135562,0.20012302,60755.0,60752.0,0.148142]
[1728623135789,0.20112302,60755.0,60754.0,0.008]
[1728623136708,0.20112302,60755.0,60754.0,0.016]